Cogmind - Beta 14 @@@ ROGUE MODE // 2024.11.10 @ 18:35:26 Player: Shimmyarah Result: Destroyed by G-50 Soldier with Heavy Laser Performance ------------- Evolutions (2) 1000 Regions Visited (5) 1000 Robots Destroyed (38) 190 Value Destroyed (830) 830 Prototype IDs (0) 0 Alien Tech Used (0) 0 Bonus (-255) -255 TOTAL SCORE: 2765 Bonus ------- Friendly Fire -255 Cogmind --------- Core Integrity 0/550 Matter 168/300 Energy 100/100 System Corruption 0% Temperature Cool (9) Movement Core (50) Location -8/Materials Parts ------- > --- POWER (1) -------- (None) > --- PROPULSION (2) --- (None) > --- UTILITY (4) ------ Structural Scanner Advanced Visual Processing Unit Seismic Detector > --- WEAPON (4) ------- (None) > --- INVENTORY (5) ---- Light Nuclear Core Advanced Treads ECM Suite Reflective Plating Heavy Flail Peak State ------------ > --- POWER ------------ Nuclear Core > --- PROPULSION ------- Light Treads Armored Treads > --- UTILITY ---------- Improved Heat Sink Small Storage Unit Advanced Visual Processing Unit Seismic Detector > --- WEAPON ----------- Beamcaster EM Pulse Cannon Ion Cannon Mace > --- INVENTORY -------- Light Deuterium Engine Light Treads Structural Scanner Improved Terrain Scanner Light Armor Plating Mining Laser [Rating: 29] Favorites ----------- Power Ion Engine Engine Ion Engine Power Core Nuclear Core Propulsion Light Treads Treads Light Treads Utility Small Storage Unit Device Seismic Detector Storage Small Storage Unit Processor Advanced Visual Processing Unit Protection Reflective Plating Weapon Beam Cannon Energy Gun Beamcaster Energy Cannon Beam Cannon Ballistic Gun Assault Rifle Launcher Grenade Launcher Special Weapon Mining Laser Impact Weapon Mace Build | -11 -10 -10 -9 -9 -8 ------- Run | Yrd Mat Min Mat Min Mat Slots Evolved 4 | . . . 2 . 2 Power . | . . . . . . Propulsion . | . . . . . . Utility 2 | . . . 2 . . Weapon 2 | . . . . . 2 Parts Attached 41 | 6 6 6 9 2 12 Power 3 | 1 . 1 . . 1 Engine 2 | 1 . . . . 1 Core 1 | . . 1 . . . Reactor . | . . . . . . Propulsion 6 | 2 . 1 1 1 1 Treads 6 | 2 . 1 1 1 1 Leg . | . . . . . . Wheel . | . . . . . . Hover . | . . . . . . Flight . | . . . . . . Utility 16 | 1 4 2 4 . 5 Device 12 | . 4 2 3 . 3 Storage 1 | 1 . . . . . Processor 1 | . . . 1 . . Hackware . | . . . . . . Protection 2 | . . . . . 2 Artifact . | . . . . . . Weapon 16 | 2 2 2 4 1 5 Energy Gun 1 | . . . 1 . . Energy Cannon 8 | . 2 1 2 . 3 Ballistic Gun 2 | 2 . . . . . Ballistic Cannon . | . . . . . . Launcher 1 | . . . . 1 . Special Weapon 3 | . . 1 1 . 1 Impact Weapon 1 | . . . . . 1 Slashing Weapon . | . . . . . . Piercing Weapon . | . . . . . . Special Melee Weapon . | . . . . . . Unidentified Prototypes . | . . . . . . Parts Lost 18 | . . . 1 . 17 Power 2 | . . . . . 2 Propulsion 3 | . . . . . 3 Utility 5 | . . . . . 5 Weapon 8 | . . . 1 . 7 Highest Loss Streak 13 | . . . 1 . 13 To Critical Strikes 1 | . . . 1 . . Average Slot Usage (%) 96 | . 100 99 99 100 74 Engine 7 | . 14 12 . . 1 Core 4 | . . 1 11 11 4 Treads 23 | . 28 27 22 22 11 Device 17 | . 14 14 24 22 16 Storage 12 | . 14 14 11 11 7 Processor 4 | . . . 8 11 9 Energy Gun 2 | . . . . 11 4 Energy Cannon 17 | . 15 27 19 2 10 Ballistic Gun 2 | . 12 . . . . Launcher 1 | . . . . 8 3 Peak Build Rating 29 | 6 9 14 22 22 29 Average Rating 13 | 5 8 9 17 22 19 On Entrance 12 | . 6 8 14 22 22 Naked Turns . | . . . . . . Heaviest Build 34 | 14 17 19 22 22 34 Greatest Support 40 | 40 40 40 40 40 40 Greatest Overweight (x) 5 | . . . . . 5 Average Overweight (x) . | . . . . . . Largest Inventory Capacity 8 | 8 8 8 8 8 8 Average Capacity 7 | 7 8 8 8 8 7 Most Carried 8 | 5 8 8 8 8 8 Average Carried 6 | 2 6 7 7 7 5 Final Capacity 8 | 8 8 8 8 8 5 Final Carried 8 | 5 8 8 7 8 5 Class Distribution -------------------- 92% | Mutant 7% | Skirmisher Dominant Class ---------------- Mutant | -10/Materials Mutant | -10/Mines Mutant | -9/Materials Mutant | -9/Mines Mutant | -8/Materials Resources | -11 -10 -10 -9 -9 -8 ----------- Run | Yrd Mat Min Mat Min Mat Matter Collected 621 | 362 108 60 80 . 11 Remotely . | . . . . . . Salvage Created 1318 | 156 133 290 228 . 511 Parts 86 | 14 4 16 25 . 27 Haulers Intercepted 1 | . . . 1 . . Recyclers Shooed 3 | 1 . . . . 2 Parts Field Recycled . | . . . . . . Retrieved Matter . | . . . . . . Parts Self-Destructed . | . . . . . . Prevented . | . . . . . . Kills | -11 -10 -10 -9 -9 -8 ------- Run | Yrd Mat Min Mat Min Mat Combat Hostiles Destroyed 24 | . 5 5 7 . 7 Guns 5 | . 3 . . . 2 Cannons 16 | . 2 3 7 . 4 AOE 1 | . . . . . 1 Classes Destroyed 11 | 2 2 1 2 . 4 Builder 2 | . . 1 . . 1 Tunneler 5 | 4 . . 1 . . Hauler 1 | . . . 1 . . Recycler 3 | 1 . 1 . . 1 Mechanic 1 | . . . . . 1 Watcher 2 | . . . 2 . . Swarmer 10 | . 3 . 7 . . Grunt 11 | . 2 5 . . 4 Sentry 1 | . . . . . 1 Hunter 1 | . . . . . 1 Heavy 1 | . . . . . 1 Best Kill Streak 6 | 5 3 3 6 . 6 Combat Bots Only 4 | . 3 3 3 . 4 Max Kills in Single Turn 2 | 1 1 1 2 . 2 Gunslinging . | . . . . . . Exploded 1 | . . . . . 1 Melee . | . . . . . . Uniques/NPCs Destroyed . | . . . . . . Combat | -11 -10 -10 -9 -9 -8 -------- Run | Yrd Mat Min Mat Min Mat Hostile Shots Fired 296 | . 28 8 81 . 179 Missed 89 | . 10 3 24 . 52 Damage Taken 2824 | . 191 78 492 . 2063 Core 649 | . 33 11 40 . 565 Absorbed by Shields . | . . . . . . Ignored by Resistances 26 | . . . . . 26 Regen/Repaired (Parts) 40 | . . . 40 . . Core Remaining (%) 90 | 100 . 82 . 90 . Volleys Fired 104 | 17 16 21 29 3 18 Largest 4 | 2 2 2 2 2 4 Hottest 228 | 40 120 120 160 105 228 Shots Fired 209 | 34 32 37 52 6 48 Gun 69 | 34 16 . . 3 16 Cannon 121 | . 16 32 47 . 26 Launcher 9 | . . . . 3 6 Special 10 | . . 5 5 . . Kinetic 50 | 34 16 . . . . Thermal 138 | . 16 37 52 3 30 Explosive 9 | . . . . 3 6 Electromagnetic 12 | . . . . . 12 Robot Hit Streak 8 | 7 4 4 3 7 8 Robot Miss Streak 4 | 3 3 3 4 . 2 Penetration Max . | . . . . . . Secondary Targets . | . . . . . . Shots Hit Robots 94 | 17 18 14 16 6 23 Core Hits 50 | 6 5 6 11 . 22 Critical Kills 1 | . . 1 . . . Critical Parts Destroyed . | . . . . . . Critical Strikes 3 | . . 1 . . 2 Burn 2 | . . . . . 2 Meltdown 1 | . . 1 . . . Melee Attacks 2 | . . . . . 2 Impact 2 | . . . . . 2 Slashing . | . . . . . . Piercing . | . . . . . . Sneak Attacks . | . . . . . . Combat Hostiles . | . . . . . . Follow-up Attacks . | . . . . . . Damage Inflicted 2018 | 212 274 272 307 85 868 Guns 588 | 212 102 . . 62 212 Cannons 1029 | . 172 264 295 . 298 Explosions 313 | . . . . 23 290 Melee 66 | . . . . . 66 Ramming 22 | . . 8 12 . 2 Kinetic 314 | 212 102 . . . . Thermal 1155 | . 172 264 295 62 362 Explosive 313 | . . . . 23 290 Electromagnetic 148 | . . . . . 148 Impact 66 | . . . . . 66 Slashing . | . . . . . . Piercing . | . . . . . . Highest Corruption . | . . . . . . Average Corruption . | . . . . . . Corruption Purged . | . . . . . . Corruption Blocked . | . . . . . . Overload Shots . | . . . . . . Overflow Damage 15 | . . . . . 15 Projectiles 15 | . . . . . 15 Explosions . | . . . . . . Melee . | . . . . . . Knockbacks . | . . . . . . Impact . | . . . . . . Kinetic . | . . . . . . Secondary . | . . . . . . Self-Inflicted Damage 1 | . . . . . 1 Shots . | . . . . . . Rammed 5 | . . 2 2 . 1 Targets Rammed 5 | . . 2 2 . 1 Kicked . | . . . . . . Crushed . | . . . . . . Highest Temperature 409 | . 240 409 285 . 375 Average Temperature 125 | . 110 124 97 . 178 Received Heat Transfer 1029 | . 84 45 18 . 882 Effects 4 | . . 3 1 . . Shutdowns 1 | . . 1 . . . Energy Bleed 2 | . . 1 1 . . Short Circuit 1 | . . 1 . . . Siege Activations . | . . . . . . Robots Corrupted . | . . . . . . Combat Hostiles . | . . . . . . Parts Fried . | . . . . . . Impact Corruptions . | . . . . . . Robots Melted 2 | . . 2 . . . Combat Hostiles 2 | . . 2 . . . Parts Melted 7 | . 1 5 1 . . Heat Transferred 2442 | . 370 555 629 111 777 Parts Sabotaged . | . . . . . . Parts Stolen . | . . . . . . Parts Stripped . | . . . . . . Power Chain Reactions . | . . . . . . Alert | -11 -10 -10 -9 -9 -8 ------- Run | Yrd Mat Min Mat Min Mat Peak Influence 282 | 25 189 152 220 95 282 Initial 85 | . 16 73 27 85 37 Average 100 | 11 108 96 97 91 165 Maximum Alert Level 1 | . . . 1 . 1 Low Security (%) 93 | 100 100 100 91 100 63 Level 1 6 | . . . 8 . 36 Level 2 . | . . . . . . Level 3 . | . . . . . . Level 4 . | . . . . . . Level 5 . | . . . . . . High Security . | . . . . . . Max Security . | . . . . . . Squads Dispatched 5 | . 1 1 1 . 2 Investigation 3 | . 1 1 1 . . Extermination . | . . . . . . Reinforcement 2 | . . . . . 2 Assault . | . . . . . . Garrison . | . . . . . . Intercept . | . . . . . . Searches Triggered . | . . . . . . Construction Impeded . | . . . . . . Haulers Reinforced . | . . . . . . Active Scanning Responses . | . . . . . . Cargo Convoy Interrupts . | . . . . . . Stealth | -11 -10 -10 -9 -9 -8 --------- Run | Yrd Mat Min Mat Min Mat Distress Signals 4 | . 1 . 1 . 2 Communications Jammed . | . . . . . . Distress Signals . | . . . . . . Times Spotted 48 | . 11 5 16 . 16 Peak Tracking Total 7 | . 4 3 5 . 7 Tactical Retreats 4 | . 2 . . . 2 Traps | -11 -10 -10 -9 -9 -8 ------- Run | Yrd Mat Min Mat Min Mat Traps Triggered 1 | . 1 . . . . Indirectly . | . . . . . . Trap Hack Attempts . | . . . . . . Triggered . | . . . . . . Disarmed . | . . . . . . Reprogrammed . | . . . . . . Reused . | . . . . . . Traps Extracted . | . . . . . . Installed . | . . . . . . Triggered . | . . . . . . Machines | -11 -10 -10 -9 -9 -8 ---------- Run | Yrd Mat Min Mat Min Mat Machines Disabled 2 | . . 1 . . 1 Max in Single Turn 1 | . . 1 . . 1 Machines Repaired . | . . . . . . Machines Dismantled . | . . . . . . Machines Sabotaged . | . . . . . . Overloaded Fab Kills . | . . . . . . Hacking | -11 -10 -10 -9 -9 -8 --------- Run | Yrd Mat Min Mat Min Mat Machines Accessed 4 | . 1 1 2 . . Terminals 2 | . 1 . 1 . . Fabricators . | . . . . . . Repair Stations 1 | . . . 1 . . Recycling Units . | . . . . . . Scanalyzers . | . . . . . . Garrison Access . | . . . . . . Total Hacks 12 | . 4 1 7 . . Successful 7 | . 1 1 5 . . Failed 5 | . 3 . 2 . . Catastrophic 1 | . 1 . . . . Database Lockouts . | . . . . . . Manual 6 | . 4 . 2 . . Terminals 6 | . 4 . 2 . . Fabricators . | . . . . . . Repair Stations 5 | . . . 5 . . Recycling Units . | . . . . . . Scanalyzers . | . . . . . . Garrison Access . | . . . . . . Terminal Hacks 2 | . 1 1 . . . Part Schematic 1 | . 1 . . . . Open Door 1 | . . 1 . . . Fabricator Hacks . | . . . . . . Repair Station Hacks 4 | . . . 4 . . Scan Component 2 | . . . 2 . . Repair 2 | . . . 2 . . Recycling Unit Hacks . | . . . . . . Scanalyzer . | . . . . . . Garrison Access Hacks . | . . . . . . Unauthorized Hacks 1 | . . . 1 . . Terminals 1 | . . . 1 . . Operators 1 | . . . 1 . . Fabricators . | . . . . . . Repair Stations . | . . . . . . Recycling Units . | . . . . . . Scanalyzers . | . . . . . . Garrison Access . | . . . . . . Data Cores Recovered . | . . . . . . Used . | . . . . . . Hacking Detections 3 | . 1 . 2 . . Full Trace Events 1 | . . . 1 . . Feedback Events . | . . . . . . Feedback Blocked . | . . . . . . Robot Schematics Acquired . | . . . . . . Robots Built . | . . . . . . Authchips . | . . . . . . Time . | . . . . . . Total Robot Build Rating . | . . . . . . Part Schematics Acquired 1 | . 1 . . . . Parts Built . | . . . . . . Authchips . | . . . . . . Time . | . . . . . . Total Part Build Rating . | . . . . . . Parts Repaired 2 | . . . 2 . . Time 52 | . . . 52 . . Parts Recycled . | . . . . . . Recycled Matter . | . . . . . . Retrieved Matter . | . . . . . . Retrieved Components . | . . . . . . Parts Scanalyzed . | . . . . . . Part Schematics Acquired . | . . . . . . Parts Damaged . | . . . . . . Bothacking | -11 -10 -10 -9 -9 -8 ------------ Run | Yrd Mat Min Mat Min Mat Used RIF Installer . | . . . . . . Robots Hacked . | . . . . . . Non-combat . | . . . . . . Combat . | . . . . . . Robot Hacks Applied . | . . . . . . Relay Couplers Released . | . . . . . . Fabnet Peak Effective % . | . . . . . . Robots Rewired . | . . . . . . Allies Hacked . | . . . . . . Hacks Repelled . | . . . . . . Allies | -11 -10 -10 -9 -9 -8 -------- Run | Yrd Mat Min Mat Min Mat Total Allies . | . . . . . . Largest Group . | . . . . . . Highest-Rated Group . | . . . . . . Highest-Rated Ally . | . . . . . . Total Orders . | . . . . . . Ally Attacks . | . . . . . . Total Damage . | . . . . . . Kills . | . . . . . . Allies Corrupted . | . . . . . . Allies Melted . | . . . . . . Intel | -11 -10 -10 -9 -9 -8 ------- Run | Yrd Mat Min Mat Min Mat Robot Analysis Total . | . . . . . . Derelict Logs Recovered . | . . . . . . Drone Launches . | . . . . . . Drone Recoveries . | . . . . . . Exploration | -11 -10 -10 -9 -9 -8 ------------- Run | Yrd Mat Min Mat Min Mat Turns Passed 1804 | 143 274 595 335 202 255 Spaces Moved 889 | 53 134 317 134 115 136 Core 76 | 8 . . . . 68 Treads 813 | 45 134 317 134 115 68 Legs . | . . . . . . Wheels . | . . . . . . Hover . | . . . . . . Flight . | . . . . . . Fastest Speed 50 | 50 160 160 165 165 50 Average Speed 155 | 143 160 160 165 165 128 Slowest Speed 300 | 160 160 165 165 165 300 Overloaded Moves . | . . . . . . Propulsion Burnouts . | . . . . . . Robots Hopped . | . . . . . . Cave-ins Triggered . | . . . . . . Exploration Rate (%) 23 | 4 34 52 16 18 18 Regions Visited 5 Branch Regions 2 Pre-discovered Areas . | . . . . . . Known Exits Taken . | . . . . . . Unknown Exits Taken 5 | 1 1 1 1 1 . Scrap Searched 1 | . . 1 . . . Spaces Dug 9 | . . 5 4 . . Terrain Destroyed 60 | . . 5 4 13 38 Melee . | . . . . . . Projectile 11 | . . 5 4 . 2 AOE 49 | . . . . 13 36 Terrain Rammed . | . . . . . . Walls Destroyed . | . . . . . . Machines Disabled . | . . . . . . Actions | -11 -10 -10 -9 -9 -8 --------- Run | Yrd Mat Min Mat Min Mat Total 1083 | 86 159 358 183 120 177 Wait . | . . . . . . Move 884 | 52 133 316 133 114 136 Hop . | . . . . . . Pick Up 36 | 11 4 5 7 1 8 Fast Attach 1 | . . 1 . . . Attach 21 | 6 1 . 3 . 11 Detach . | . . . . . . Swap 19 | . 5 5 6 2 1 Drop 11 | . . 8 3 . . Fire 104 | 17 16 21 29 3 18 Melee 2 | . . . . . 2 Ram 1 | . . . . . 1 Kick . | . . . . . . Crush 4 | . . 2 2 . . Escape Stasis . | . . . . . . Rewire . | . . . . . . Trap . | . . . . . . Miscellaneous . | . . . . . . Route ------- -11/Scrapyard -10/Materials -10/Mines -9/Materials -9/Mines -8/Materials History --------- Turn | Location | Event 27 | -11/Scrapyard | Discovered new exit (range 15) 144 | -11/Scrapyard | Entered Materials 317 | -10/Materials | Build established: Mutant 349 | -10/Materials | Discovered new exit (range 9) 418 | -10/Materials | Entered Mines 863 | -10/Mines | Discovered new exit (range 7) 931 | -10/Mines | Met a Derelict shopkeep closing up shop 1013 | -10/Mines | Entered Materials 1013 | -9/Materials | Evolved 2 slots: Utility x2 1241 | -9/Materials | Repaired Mining Laser 1298 | -9/Materials | Repaired Sensor Array 1339 | -9/Materials | Discovered new exit (range 6) 1348 | -9/Materials | Entered Mines 1379 | -9/Mines | YI-UF0 nonchalantly dropped a Grenade Launcher on the ground 1401 | -9/Mines | Met a Derelict bent on vengeance 1442 | -9/Mines | Discovered new exit (range 9) 1550 | -9/Mines | Entered Materials 1550 | -8/Materials | Evolved 2 slots: Weapon x2 1742 | -8/Materials | Core integrity fell below 50% 1771 | -8/Materials | Lost 13 parts (2p3n3u5w) 1772 | -8/Materials | Core integrity fell below 20% 1805 | -8/Materials | Destroyed by G-50 Soldier with Heavy Laser Last Messages --------------- 01724_ Penetrated by Slug. 01724_ Electrolysis Chamber disabled. 01724_ Ion Cannon destroyed. 01726_ Acquired Reflective Plating. 01728_ Lgt. Treads destroyed. 01730_ Penetrated by Slug. 01736_ Reflective Plating destroyed. 01737_ Critical hit (Burn: +37). 01740_ Lgt. Deuterium Engine destroyed. 01755_ K-01 Serf collects debris. 01768_ Critical hit (Burn: +37). 01772_ Mace destroyed. 01773_ Slammed into G-50 Soldier. 01776_ Imp. Terrain Scanner destroyed. 01776_ Sml. Storage Unit destroyed. 01782_ Acquired Hvy. Flail. 01785_ Acquired Lgt. Nuclear Core. 01788_ Acquired ECM Suite. 01790_ Acquired Adv. Treads. 01805_ Acquired Reflective Plating. Map ----- +----------------------------------------------------+ | | | | | ???????#???#######?###???????????????????????? | | ??????????? ##???????###########?????? | | ?????????## ##???????###########?????? | | ?????????## """ """ ########### T ##?????? | | ?????????## """ """ ########### ##?????? | | ?????????## """ """ # """T""" # ##?????? | | ?????????## """ """ # # ##?????? | | ?????????## """ """ # + ##?????? | | ?????###### # #""" ##?????? | | ?????###########/#### """ """ #""" ##?????? | | ????? # ! ! # / """ """ #""" #####??? | | ????? # # #### """ """ #""" #####??? | | ????? # """"" + #### g #""" # ##??? | | ????? # """"" # ##########g### # ##??? | | ????? # """"" # T #######+## ##??? | | ????? # + ##??? | | ????? # # ##??? | | ????? # "T" ###+### #######+######### | | ????? # ] """ ## # """ ####### ## | | ?????## ##!! !# " " # ?? # "" ## | | ? ???###########]! # + ??? # T" # | | ?????###########!! !# # ??? # "" ## | | ??????????????## # # ??? # """ ## | | ??????????????####### [!@ # ??? # """ ## | | ????????#????? ### [! # ??? # """ ## | | ??????????????????### ! # ??? # ## | | ???????????????????##[ # ??? ############ | | ???????????????????##k ##???############# | | ???????????????????## ###+###???????????????? | | ???????????????????## ## ???????????????? | | ????????????????"?### ##????????????????????? | | ????????????# "?"??## ##?????? ?????????????? | | ????????????# """ ?## # ?????"""????????????? | | ???????????## """ ### ##???? ""?????????????? | | ??????????## " # ##??R "??????????????? | | ????????### #?"""????????????????? | | ???? #### # # # ??????????????????? | | ??? % ###??????????????????? | | ??? % *! ##?????????????????? | | ??? H% #?????????????????? | | ?????########## %[[ #?????????????????? | | ????????#! = #/#####?????????????? | | ????????# ## !## #?????????????? | | ????????# """"""" ?# %=##""" #?????????????? | | ????????# """"""" ?# ="#""" #?????????????? | | ???????????""""""??# %="#"" #?????????????? | | ??????????????"""??# ## #?????????????? | | ??????????????????## ##! % #?????????????? | +----------------------------------------------------+ Best States ------------- Heat Dissipation 45 Energy Generation 14 Energy Capacity 250 Matter Stores 300 Matter Capacity 300 Sight Range 20 Terrain Scan Range 16 Terrain Scan Density 10 Armor Coverage 150 Resistance: TH 10 Evasion (%) 50 Recoil Reduction 2 Item Schematics ----------------- Beam Cannon | -10/Materials | Hacked Robot Schematics ------------------ None Fabricated ------------ Nothing Alien Tech Used ----------------- None Achievements -------------- None Challenges ------------ None Game ------ Seed VariableClaymoresAccelerator Manual? 0 Play Time 00:23:28 Cumulative 28.2 hours Start 2024.11.10 @ 18:12:38 End 2024.11.10 @ 18:35:26 Sessions 1 Manual Loads 0 Difficulty Rogue Special Mode None Game No. 64 Rogue 64 Adventurer 0 Explorer 0 Win Type - Total 0 Types 0/0/0/0/0/0/0/0/0 Lore% 12 Gallery% 22 Achievement% 21 Wizard Run 0 Options --------- Layout 1 ASCII 0 Keyboard 0 Movement Mouse Keybinds 0 Fullscreen 1 Font 24/Smallcaps Map View 50x40 Zoom Use 0% Tactical HUD 1 Map Filters NONE Filters NONE Steam 1 RUN: 1ac088d5-4c78-44df-a81f-8414fbfdc907